[Event "*** Titled Tuesday Blitz"]
[Site "Chess.com"]
[Date "2021.03.16"]
[Round "3"]
[White "Pantata007"]
[Black "MoonlighT89"]
[Result "0-1"]
[WhiteElo "2336"]
[BlackElo "2608"]
[TimeControl "180+1"]
[EndTime "10:28:26 PDT"]
[Termination "MoonlighT89 won on time"]

1. d4 {[%clk 0:03:00.9]} 1... Nf6 {[%clk 0:03:00.1]} 2. c4 {[%clk 0:03:01.2]}
2... e6 {[%clk 0:03:00.5]} 3. Nc3 {[%clk 0:03:01.6]} 3... Bb4 {[%clk 0:03:00.6]}
4. e3 {[%clk 0:03:02.1]} 4... O-O {[%clk 0:03:00]} 5. Ne2 {[%clk 0:03:02.5]}
5... c6 {[%clk 0:02:59.5]} 6. a3 {[%clk 0:03:02]} 6... Ba5 {[%clk 0:02:59.9]} 7.
Qc2 {[%clk 0:03:02.4]} 7... d5 {[%clk 0:02:58.1]} 8. Ng3 {[%clk 0:03:02.4]} 8...
Nbd7 {[%clk 0:02:55.1]} 9. Be2 {[%clk 0:03:02.7]} 9... dxc4 {[%clk 0:02:50.3]}
10. Bxc4 {[%clk 0:03:02.7]} 10... e5 {[%clk 0:02:50.3]} 11. O-O {[%clk
0:03:01.7]} 11... Bc7 {[%clk 0:02:44.1]} 12. Rd1 {[%clk 0:02:29.6]} 12... Re8
{[%clk 0:02:33.9]} 13. Ba2 {[%clk 0:02:19.7]} 13... Qe7 {[%clk 0:02:30.3]} 14.
Nf5 {[%clk 0:02:08.9]} 14... Qf8 {[%clk 0:02:28.2]} 15. e4 {[%clk 0:02:01.3]}
15... exd4 {[%clk 0:02:23.7]} 16. Nxd4 {[%clk 0:01:42.2]} 16... Nc5 {[%clk
0:02:05.7]} 17. f3 {[%clk 0:01:38.9]} 17... Bb6 {[%clk 0:02:01]} 18. Be3 {[%clk
0:01:33.1]} 18... Ne6 {[%clk 0:01:43]} 19. Kh1 {[%clk 0:01:27.2]} 19... Nxd4
{[%clk 0:01:41.1]} 20. Bxd4 {[%clk 0:01:28.1]} 20... Bxd4 {[%clk 0:01:41.3]} 21.
Rxd4 {[%clk 0:01:28.7]} 21... Be6 {[%clk 0:01:42.2]} 22. Bxe6 {[%clk 0:01:26.1]}
22... Rxe6 {[%clk 0:01:43.1]} 23. Rad1 {[%clk 0:01:25.6]} 23... Qc5 {[%clk
0:01:43.2]} 24. Qb3 {[%clk 0:01:14.6]} 24... Qb6 {[%clk 0:01:18.9]} 25. Qxb6
{[%clk 0:01:09.3]} 25... axb6 {[%clk 0:01:19.8]} 26. Rd8+ {[%clk 0:01:08.7]}
26... Re8 {[%clk 0:01:18.8]} 27. Rxe8+ {[%clk 0:01:05.2]} 27... Rxe8 {[%clk
0:01:18.4]} 28. g3 {[%clk 0:01:00.3]} 28... g5 {[%clk 0:01:16.1]} 29. Kg2 {[%clk
0:01:00.2]} 29... g4 {[%clk 0:01:11.8]} 30. Rd6 {[%clk 0:00:46.9]} 30... Kg7
{[%clk 0:01:09.2]} 31. Kf2 {[%clk 0:00:47.2]} 31... h5 {[%clk 0:01:07.1]} 32.
Ke3 {[%clk 0:00:45.5]} 32... gxf3 {[%clk 0:01:06.3]} 33. Kxf3 {[%clk 0:00:45.4]}
33... b5 {[%clk 0:01:06.5]} 34. Kf4 {[%clk 0:00:43]} 34... Ng4 {[%clk
0:00:59.1]} 35. Rd7 {[%clk 0:00:32.6]} 35... Ne5 {[%clk 0:00:32.4]} 36. Rxb7
{[%clk 0:00:29.9]} 36... Nd3+ {[%clk 0:00:32.8]} 37. Kf3 {[%clk 0:00:26.1]}
37... Nxb2 {[%clk 0:00:32.8]} 38. Rc7 {[%clk 0:00:17.5]} 38... Re6 {[%clk
0:00:31.3]} 39. Ne2 {[%clk 0:00:17.7]} 39... Nc4 {[%clk 0:00:27.8]} 40. Nd4
{[%clk 0:00:16.6]} 40... Rf6+ {[%clk 0:00:28.2]} 41. Ke2 {[%clk 0:00:15.6]}
41... Nxa3 {[%clk 0:00:26.2]} 42. Rxc6 {[%clk 0:00:09.9]} 42... b4 {[%clk
0:00:25.3]} 43. e5 {[%clk 0:00:04.1]} 43... Rxc6 {[%clk 0:00:21.7]} 44. Nxc6
{[%clk 0:00:05]} 44... b3 {[%clk 0:00:22.6]} 0-1

[Event "*** Titled Tuesday Blitz"]
[Site "Chess.com"]
[Date "2021.03.16"]
[Round "3"]
[White "GM4life"]
[Black "davidkalashian"]
[Result "1-0"]
[WhiteElo "2332"]
[BlackElo "2556"]
[TimeControl "180+1"]
[EndTime "10:28:26 PDT"]
[Termination "GM4life won by checkmate"]

1. e4 {[%clk 0:03:00.9]} 1... c6 {[%clk 0:02:59.7]} 2. d4 {[%clk 0:03:00.3]}
2... g6 {[%clk 0:03:00.4]} 3. Nc3 {[%clk 0:02:59.7]} 3... Bg7 {[%clk 0:03:00.7]}
4. Nf3 {[%clk 0:02:59.8]} 4... d6 {[%clk 0:03:01]} 5. h3 {[%clk 0:02:55.9]} 5...
Nf6 {[%clk 0:03:00.7]} 6. Bd3 {[%clk 0:02:55.1]} 6... O-O {[%clk 0:02:59.3]} 7.
O-O {[%clk 0:02:55.5]} 7... Nbd7 {[%clk 0:02:39.7]} 8. Re1 {[%clk 0:02:53.8]}
8... e5 {[%clk 0:02:38.9]} 9. Bg5 {[%clk 0:02:53.1]} 9... Re8 {[%clk 0:02:35.6]}
10. Qd2 {[%clk 0:02:52.7]} 10... Qc7 {[%clk 0:02:34.8]} 11. Rad1 {[%clk
0:02:51.5]} 11... b5 {[%clk 0:02:31.9]} 12. dxe5 {[%clk 0:02:50.9]} 12... dxe5
{[%clk 0:02:30.8]} 13. Ne2 {[%clk 0:02:49]} 13... Nc5 {[%clk 0:02:29.2]} 14. Ng3
{[%clk 0:02:46.5]} 14... Be6 {[%clk 0:02:14.5]} 15. Qe3 {[%clk 0:02:17.5]} 15...
Qb6 {[%clk 0:02:06]} 16. Nxe5 {[%clk 0:02:11.6]} 16... Nxd3 {[%clk 0:01:51.3]}
17. Nxd3 {[%clk 0:02:08.7]} 17... Qxe3 {[%clk 0:01:44.8]} 18. Bxe3 {[%clk
0:02:08.1]} 18... a5 {[%clk 0:01:36.1]} 19. a3 {[%clk 0:02:00.8]} 19... h5
{[%clk 0:01:32.2]} 20. Bd4 {[%clk 0:01:46.6]} 20... h4 {[%clk 0:01:27.9]} 21.
Nf1 {[%clk 0:01:46]} 21... Bc4 {[%clk 0:01:12.4]} 22. Nd2 {[%clk 0:01:40.1]}
22... Bxd3 {[%clk 0:01:09.6]} 23. cxd3 {[%clk 0:01:41]} 23... Red8 {[%clk
0:01:09.3]} 24. Nf3 {[%clk 0:01:38.2]} 24... b4 {[%clk 0:00:59.1]} 25. a4 {[%clk
0:01:25.9]} 25... Nd7 {[%clk 0:00:53.8]} 26. Bxg7 {[%clk 0:01:24.7]} 26... Kxg7
{[%clk 0:00:54.7]} 27. Rc1 {[%clk 0:01:15.9]} 27... Nb6 {[%clk 0:00:53.6]} 28.
b3 {[%clk 0:00:59.5]} 28... Rxd3 {[%clk 0:00:43.2]} 29. Rxc6 {[%clk 0:00:58.8]}
29... Nd7 {[%clk 0:00:43.3]} 30. Re3 {[%clk 0:00:52]} 30... Rxe3 {[%clk
0:00:39]} 31. fxe3 {[%clk 0:00:52.9]} 31... Nf6 {[%clk 0:00:39.6]} 32. e5 {[%clk
0:00:50.4]} 32... Nd5 {[%clk 0:00:34.3]} 33. Kf2 {[%clk 0:00:45.8]} 33... Nc3
{[%clk 0:00:28.3]} 34. Nxh4 {[%clk 0:00:39.6]} 34... Rd8 {[%clk 0:00:23.4]} 35.
Rc7 {[%clk 0:00:37.9]} 35... Rd2+ {[%clk 0:00:22.2]} 36. Kf3 {[%clk 0:00:37.3]}
36... Kf8 {[%clk 0:00:16.9]} 37. e6 {[%clk 0:00:35.3]} 37... fxe6 {[%clk
0:00:15.1]} 38. Nxg6+ {[%clk 0:00:35.3]} 38... Kg8 {[%clk 0:00:15.8]} 39. Nf4
{[%clk 0:00:31.9]} 39... e5 {[%clk 0:00:13.5]} 40. Nh5 {[%clk 0:00:26.4]} 40...
e4+ {[%clk 0:00:14.4]} 41. Kg3 {[%clk 0:00:25.8]} 41... Rb2 {[%clk 0:00:13.5]}
42. Nf6+ {[%clk 0:00:22.8]} 42... Kf8 {[%clk 0:00:12.2]} 43. Kf4 {[%clk
0:00:21.6]} 43... Rxb3 {[%clk 0:00:10.8]} 44. Ke5 {[%clk 0:00:21.7]} 44... Nxa4
{[%clk 0:00:03.8]} 45. Ke6 {[%clk 0:00:20.3]} 45... Rc3 {[%clk 0:00:03.9]} 46.
Rf7# {[%clk 0:00:19.6]} 1-0

[Event "*** Titled Tuesday Blitz"]
[Site "Chess.com"]
[Date "2021.03.16"]
[Round "3"]
[White "JordanLoyd2020"]
[Black "katchesskat"]
[Result "1-0"]
[WhiteElo "2524"]
[BlackElo "2287"]
[TimeControl "180+1"]
[EndTime "10:28:26 PDT"]
[Termination "JordanLoyd2020 won on time"]

1. d4 {[%clk 0:03:00.9]} 1... c5 {[%clk 0:02:29]} 2. d5 {[%clk 0:03:00]} 2... e5
{[%clk 0:02:28.6]} 3. Nc3 {[%clk 0:02:58.8]} 3... a6 {[%clk 0:02:28.8]} 4. a4
{[%clk 0:02:56.6]} 4... d6 {[%clk 0:02:28.9]} 5. e4 {[%clk 0:02:57]} 5... Ne7
{[%clk 0:02:28.6]} 6. Bd3 {[%clk 0:02:56.2]} 6... Ng6 {[%clk 0:02:28.5]} 7. Nge2
{[%clk 0:02:52.4]} 7... Be7 {[%clk 0:02:28.6]} 8. Be3 {[%clk 0:02:47.6]} 8...
Bg5 {[%clk 0:02:28]} 9. Qd2 {[%clk 0:02:46.8]} 9... Bxe3 {[%clk 0:02:27.5]} 10.
Qxe3 {[%clk 0:02:47.7]} 10... O-O {[%clk 0:02:27.5]} 11. O-O {[%clk 0:02:41.1]}
11... Nd7 {[%clk 0:02:21.5]} 12. Ng3 {[%clk 0:02:33]} 12... Nf6 {[%clk
0:02:21.3]} 13. Nce2 {[%clk 0:02:21.6]} 13... b6 {[%clk 0:02:12.2]} 14. c4
{[%clk 0:02:09.1]} 14... Rb8 {[%clk 0:02:10.9]} 15. Nf5 {[%clk 0:01:45]} 15...
Bxf5 {[%clk 0:02:09.8]} 16. exf5 {[%clk 0:01:45.9]} 16... Ne7 {[%clk 0:02:07.2]}
17. Nc3 {[%clk 0:01:12.3]} 17... Qd7 {[%clk 0:02:05.7]} 18. Qf3 {[%clk
0:01:07.4]} 18... Rfe8 {[%clk 0:01:43.4]} 19. g4 {[%clk 0:01:01.6]} 19... h6
{[%clk 0:01:42.6]} 20. h4 {[%clk 0:00:59.6]} 20... Nh7 {[%clk 0:01:11.7]} 21.
Ne4 {[%clk 0:00:48.5]} 21... f6 {[%clk 0:01:08.3]} 22. Kh1 {[%clk 0:00:37.3]}
22... Kh8 {[%clk 0:01:02.5]} 23. Rg1 {[%clk 0:00:36.9]} 23... Rf8 {[%clk
0:01:00.6]} 24. Kh2 {[%clk 0:00:32.6]} 24... Qc7 {[%clk 0:00:55]} 25. Ng3 {[%clk
0:00:31.3]} 25... b5 {[%clk 0:00:52.9]} 26. axb5 {[%clk 0:00:24.9]} 26... axb5
{[%clk 0:00:52.6]} 27. cxb5 {[%clk 0:00:23.6]} 27... c4 {[%clk 0:00:50.3]} 28.
Rgc1 {[%clk 0:00:23.9]} 28... Rxb5 {[%clk 0:00:50.2]} 29. Rxc4 {[%clk
0:00:21.2]} 29... Qb7 {[%clk 0:00:48.2]} 30. Be4 {[%clk 0:00:20.6]} 30... Rxb2
{[%clk 0:00:47.3]} 31. Rac1 {[%clk 0:00:20.7]} 31... Rc8 {[%clk 0:00:43.9]} 32.
Rxc8+ {[%clk 0:00:13.7]} 32... Nxc8 {[%clk 0:00:44.8]} 33. Kg2 {[%clk
0:00:12.5]} 33... Ne7 {[%clk 0:00:39.9]} 34. Qc3 {[%clk 0:00:11.6]} 34... Nf8
{[%clk 0:00:31.4]} 35. Qc7 {[%clk 0:00:10.6]} 35... Rb6 {[%clk 0:00:16]} 36. Qd8
{[%clk 0:00:07.6]} 36... Kg8 {[%clk 0:00:14.5]} 37. Rc7 {[%clk 0:00:05.3]} 37...
Qxc7 {[%clk 0:00:04.2]} 38. Qxc7 {[%clk 0:00:06.2]} 38... Rb3 {[%clk 0:00:02.5]}
39. Qxe7 {[%clk 0:00:06.1]} 39... h5 {[%clk 0:00:02.4]} 40. Nxh5 {[%clk
0:00:05.6]} 1-0

[Event "*** Titled Tuesday Blitz"]
[Site "Chess.com"]
[Date "2021.03.16"]
[Round "3"]
[White "Storne89"]
[Black "GoltsevDmitry2000"]
[Result "0-1"]
[WhiteElo "2626"]
[BlackElo "2831"]
[TimeControl "180+1"]
[EndTime "10:28:33 PDT"]
[Termination "GoltsevDmitry2000 won by resignation"]

1. e4 {[%clk 0:03:00.9]} 1... c5 {[%clk 0:02:59.6]} 2. Nf3 {[%clk 0:02:59.9]}
2... e6 {[%clk 0:03:00]} 3. c4 {[%clk 0:02:59.2]} 3... Nc6 {[%clk 0:02:59.9]} 4.
Nc3 {[%clk 0:02:59.7]} 4... Nd4 {[%clk 0:02:59.6]} 5. Be2 {[%clk 0:02:58.8]}
5... d6 {[%clk 0:02:58.6]} 6. Nxd4 {[%clk 0:02:56.3]} 6... cxd4 {[%clk
0:02:59.3]} 7. Nb5 {[%clk 0:02:56.7]} 7... e5 {[%clk 0:02:58.5]} 8. d3 {[%clk
0:02:56.2]} 8... a6 {[%clk 0:02:57.5]} 9. Na3 {[%clk 0:02:55.9]} 9... Nf6 {[%clk
0:02:56.5]} 10. O-O {[%clk 0:02:56]} 10... Be7 {[%clk 0:02:56]} 11. f4 {[%clk
0:02:55.6]} 11... O-O {[%clk 0:02:56.3]} 12. Nc2 {[%clk 0:02:54.7]} 12... Bd7
{[%clk 0:02:55.2]} 13. a4 {[%clk 0:02:49.8]} 13... b5 {[%clk 0:02:54.5]} 14. b3
{[%clk 0:02:43.2]} 14... bxa4 {[%clk 0:02:53.7]} 15. b4 {[%clk 0:02:37.3]} 15...
Rb8 {[%clk 0:02:50.3]} 16. fxe5 {[%clk 0:02:29.4]} 16... dxe5 {[%clk 0:02:51]}
17. Bd2 {[%clk 0:02:29.8]} 17... Bc6 {[%clk 0:02:41.8]} 18. Qe1 {[%clk
0:02:13.7]} 18... Nxe4 {[%clk 0:02:25.6]} 19. dxe4 {[%clk 0:02:10.7]} 19... d3
{[%clk 0:02:25.5]} 20. Bf3 {[%clk 0:01:58]} 20... dxc2 {[%clk 0:02:24.5]} 21.
Bc3 {[%clk 0:01:57.3]} 21... Qd3 {[%clk 0:02:22.6]} 22. c5 {[%clk 0:01:49.7]}
22... Bg5 {[%clk 0:01:54.4]} 23. Bxe5 {[%clk 0:01:41.7]} 23... c1=Q {[%clk
0:01:49.7]} 24. Rxc1 {[%clk 0:01:37.4]} 24... Bxc1 {[%clk 0:01:50.6]} 25. Qxc1
{[%clk 0:01:32.4]} 25... Rxb4 {[%clk 0:01:43.9]} 26. Qa1 {[%clk 0:01:17.6]}
26... f6 {[%clk 0:01:34.2]} 27. Bd6 {[%clk 0:01:15.2]} 27... Rd8 {[%clk
0:01:08.1]} 28. Qa2+ {[%clk 0:01:11.5]} 28... Qc4 {[%clk 0:01:04.7]} 29. Qa3
{[%clk 0:00:24.4]} 29... Bxe4 {[%clk 0:00:48.7]} 30. Bxe4 {[%clk 0:00:21.2]}
30... Qxe4 {[%clk 0:00:49.6]} 31. h3 {[%clk 0:00:21.7]} 31... h6 {[%clk
0:00:30]} 32. Kh1 {[%clk 0:00:21.5]} 32... Qd4 {[%clk 0:00:22.1]} 33. Qf3 {[%clk
0:00:18.4]} 33... Rxd6 {[%clk 0:00:17.8]} 34. cxd6 {[%clk 0:00:17.3]} 34... Qxd6
{[%clk 0:00:18.7]} 35. Re1 {[%clk 0:00:13.7]} 35... Rb8 {[%clk 0:00:15.3]} 36.
Ra1 {[%clk 0:00:08.9]} 36... Qd4 {[%clk 0:00:13.8]} 37. Qa3 {[%clk 0:00:07.3]}
37... Kh7 {[%clk 0:00:09.9]} 38. Rc1 {[%clk 0:00:07]} 38... Qb2 {[%clk
0:00:08.4]} 39. Qe3 {[%clk 0:00:06.4]} 39... Kh8 {[%clk 0:00:06.9]} 40. Rd1
{[%clk 0:00:05.3]} 40... a3 {[%clk 0:00:07.2]} 41. Qf4 {[%clk 0:00:05.4]} 41...
a2 {[%clk 0:00:07.2]} 0-1

[Event "*** Titled Tuesday Blitz"]
[Site "Chess.com"]
[Date "2021.03.16"]
[Round "3"]
[White "Fighter008"]
[Black "1977Ivan"]
[Result "0-1"]
[WhiteElo "2627"]
[BlackElo "2821"]
[TimeControl "180+1"]
[EndTime "10:28:34 PDT"]
[Termination "1977Ivan won on time"]

1. e4 {[%clk 0:03:00.9]} 1... c5 {[%clk 0:02:58.9]} 2. Nf3 {[%clk 0:03:00.7]}
2... e6 {[%clk 0:02:59.4]} 3. d4 {[%clk 0:03:00.8]} 3... cxd4 {[%clk 0:03:00.3]}
4. Nxd4 {[%clk 0:03:01.5]} 4... Nc6 {[%clk 0:03:01]} 5. Nc3 {[%clk 0:02:56.8]}
5... Qc7 {[%clk 0:03:01]} 6. g3 {[%clk 0:02:54.2]} 6... a6 {[%clk 0:03:01.2]} 7.
Nxc6 {[%clk 0:02:53.3]} 7... dxc6 {[%clk 0:02:45.6]} 8. Bg2 {[%clk 0:02:52.6]}
8... e5 {[%clk 0:02:44.7]} 9. O-O {[%clk 0:02:52.1]} 9... h5 {[%clk 0:02:44.4]}
10. Be3 {[%clk 0:02:46.9]} 10... Nf6 {[%clk 0:02:43.2]} 11. h3 {[%clk 0:02:43]}
11... h4 {[%clk 0:02:22]} 12. g4 {[%clk 0:02:43]} 12... Be6 {[%clk 0:02:16.4]}
13. f4 {[%clk 0:02:34.1]} 13... Rd8 {[%clk 0:02:13.9]} 14. Qe1 {[%clk
0:02:24.3]} 14... exf4 {[%clk 0:02:06.2]} 15. Bxf4 {[%clk 0:02:23.9]} 15... Qb6+
{[%clk 0:01:54.8]} 16. Kh1 {[%clk 0:02:04.4]} 16... Be7 {[%clk 0:01:54.5]} 17.
Rb1 {[%clk 0:01:37.6]} 17... Nd7 {[%clk 0:01:15.5]} 18. e5 {[%clk 0:01:33.6]}
18... Nf8 {[%clk 0:01:15.1]} 19. Ne4 {[%clk 0:01:30.5]} 19... Ng6 {[%clk
0:01:15]} 20. Bg5 {[%clk 0:01:17.2]} 20... Bxg5 {[%clk 0:00:54.9]} 21. Nxg5
{[%clk 0:01:18.1]} 21... O-O {[%clk 0:00:53.8]} 22. Nxe6 {[%clk 0:01:15.1]}
22... fxe6 {[%clk 0:00:54.7]} 23. Qe4 {[%clk 0:01:10.5]} 23... Ne7 {[%clk
0:00:54.2]} 24. b3 {[%clk 0:00:54.8]} 24... Qc5 {[%clk 0:00:51.5]} 25. Rbe1
{[%clk 0:00:51.7]} 25... Qc3 {[%clk 0:00:47.3]} 26. Rd1 {[%clk 0:00:43.2]} 26...
Qg3 {[%clk 0:00:38]} 27. Rxd8 {[%clk 0:00:40.1]} 27... Rxd8 {[%clk 0:00:38.9]}
28. Qb4 {[%clk 0:00:39]} 28... Ng6 {[%clk 0:00:34.5]} 29. Qxb7 {[%clk
0:00:29.1]} 29... Nxe5 {[%clk 0:00:32.9]} 30. Qe7 {[%clk 0:00:14.2]} 30... Rd4
{[%clk 0:00:14.7]} 31. Qxe6+ {[%clk 0:00:14.3]} 31... Kh7 {[%clk 0:00:14.8]} 32.
Qf5+ {[%clk 0:00:14]} 32... g6 {[%clk 0:00:13.8]} 33. Qe6 {[%clk 0:00:10.6]}
33... Rf4 {[%clk 0:00:06.2]} 34. Rd1 {[%clk 0:00:06.9]} 34... Rf2 {[%clk
0:00:04.8]} 35. Qe7+ {[%clk 0:00:06.2]} 35... Kh6 {[%clk 0:00:05]} 36. Rg1
{[%clk 0:00:03.9]} 36... Nf3 {[%clk 0:00:02.4]} 37. Qf8+ {[%clk 0:00:03.5]}
37... Kg5 {[%clk 0:00:02.5]} 38. Qe7+ {[%clk 0:00:03.3]} 38... Kf4 {[%clk
0:00:02.2]} 39. Qd6+ {[%clk 0:00:03.1]} 39... Ne5 {[%clk 0:00:01.9]} 40. Qf6+
{[%clk 0:00:01.2]} 40... Ke3 {[%clk 0:00:02]} 0-1

[Event "*** Titled Tuesday Blitz"]
[Site "Chess.com"]
[Date "2021.03.16"]
[Round "3"]
[White "Shuvalov"]
[Black "Rud_Makarian"]
[Result "0-1"]
[WhiteElo "2489"]
[BlackElo "2793"]
[TimeControl "180+1"]
[EndTime "10:28:34 PDT"]
[Termination "Rud_Makarian won by resignation"]

1. Nf3 {[%clk 0:03:00.9]} 1... Nf6 {[%clk 0:02:59.6]} 2. c4 {[%clk 0:03:00.5]}
2... a6 {[%clk 0:02:59.2]} 3. e3 {[%clk 0:02:51.8]} 3... e6 {[%clk 0:02:57.4]}
4. b3 {[%clk 0:02:49.6]} 4... d5 {[%clk 0:02:51.7]} 5. Bb2 {[%clk 0:02:49.5]}
5... c5 {[%clk 0:02:52.3]} 6. Nc3 {[%clk 0:02:39.5]} 6... Nc6 {[%clk 0:02:48.4]}
7. cxd5 {[%clk 0:02:38.7]} 7... exd5 {[%clk 0:02:45.4]} 8. d4 {[%clk 0:02:38]}
8... Bg4 {[%clk 0:02:40]} 9. Be2 {[%clk 0:02:32.9]} 9... b5 {[%clk 0:02:26.6]}
10. dxc5 {[%clk 0:02:29.1]} 10... Bxc5 {[%clk 0:02:26.1]} 11. O-O {[%clk
0:02:25.5]} 11... O-O {[%clk 0:02:17.6]} 12. Rc1 {[%clk 0:02:24.7]} 12... Qd6
{[%clk 0:02:17.7]} 13. h3 {[%clk 0:02:09.7]} 13... Bh5 {[%clk 0:02:13.1]} 14.
Nh4 {[%clk 0:02:02.2]} 14... Bg6 {[%clk 0:02:01.3]} 15. Nxg6 {[%clk 0:01:36.9]}
15... hxg6 {[%clk 0:02:02.2]} 16. Bf3 {[%clk 0:01:36.3]} 16... Ne7 {[%clk
0:01:59.9]} 17. Ne2 {[%clk 0:01:34.3]} 17... Rac8 {[%clk 0:01:57.4]} 18. Qd3
{[%clk 0:01:19.2]} 18... Rfd8 {[%clk 0:01:53.2]} 19. Rfd1 {[%clk 0:01:18.7]}
19... Ba3 {[%clk 0:01:43.2]} 20. Qb1 {[%clk 0:01:05.8]} 20... Bxb2 {[%clk
0:01:09.4]} 21. Qxb2 {[%clk 0:01:06.7]} 21... Rxc1 {[%clk 0:01:09.5]} 22. Rxc1
{[%clk 0:01:05.9]} 22... Nf5 {[%clk 0:01:10.3]} 23. Nd4 {[%clk 0:01:01.8]} 23...
Ne4 {[%clk 0:00:48.4]} 24. Rc6 {[%clk 0:00:41.9]} 24... Qb4 {[%clk 0:00:48.2]}
25. Bxe4 {[%clk 0:00:34.8]} 25... dxe4 {[%clk 0:00:49.1]} 26. Nxf5 {[%clk
0:00:23.7]} 26... gxf5 {[%clk 0:00:50]} 27. Rxa6 {[%clk 0:00:20.7]} 27... Qe1+
{[%clk 0:00:50.1]} 28. Kh2 {[%clk 0:00:21]} 28... Rd2 {[%clk 0:00:48]} 29. Qe5
{[%clk 0:00:19.8]} 29... Qxf2 {[%clk 0:00:48.2]} 30. Qg3 {[%clk 0:00:16]} 30...
Qxg3+ {[%clk 0:00:35.5]} 31. Kxg3 {[%clk 0:00:16.9]} 31... g6 {[%clk 0:00:35.4]}
32. h4 {[%clk 0:00:15.7]} 32... Re2 {[%clk 0:00:33.6]} 33. Kf4 {[%clk
0:00:15.5]} 33... Rxg2 {[%clk 0:00:33.5]} 34. a4 {[%clk 0:00:15.2]} 34... bxa4
{[%clk 0:00:31.3]} 35. bxa4 {[%clk 0:00:16.1]} 35... Kg7 {[%clk 0:00:29.5]} 36.
a5 {[%clk 0:00:15.8]} 36... Rg4+ {[%clk 0:00:25.9]} 37. Ke5 {[%clk 0:00:15.8]}
37... Rxh4 {[%clk 0:00:26.8]} 38. Ra8 {[%clk 0:00:15.2]} 38... Rh1 {[%clk
0:00:26.4]} 39. a6 {[%clk 0:00:15]} 39... Ra1 {[%clk 0:00:27.1]} 40. a7 {[%clk
0:00:15.2]} 40... Ra5+ {[%clk 0:00:27.5]} 41. Kf4 {[%clk 0:00:15.3]} 41... Kf6
{[%clk 0:00:26.4]} 42. Kg3 {[%clk 0:00:14]} 42... g5 {[%clk 0:00:25.2]} 43. Kh3
{[%clk 0:00:14.1]} 43... Ra3 {[%clk 0:00:25.2]} 44. Kh2 {[%clk 0:00:14.3]} 44...
f4 {[%clk 0:00:18.7]} 45. exf4 {[%clk 0:00:14.6]} 45... gxf4 {[%clk 0:00:19.6]}
46. Kg2 {[%clk 0:00:14.9]} 46... Kf5 {[%clk 0:00:19]} 47. Kh2 {[%clk 0:00:13.1]}
47... Ra2+ {[%clk 0:00:18.6]} 48. Kh3 {[%clk 0:00:13.3]} 48... e3 {[%clk
0:00:18.5]} 49. Rd8 {[%clk 0:00:08.9]} 49... Rxa7 {[%clk 0:00:18.8]} 50. Rd5+
{[%clk 0:00:08.8]} 50... Ke4 {[%clk 0:00:19.2]} 0-1

[Event "*** Titled Tuesday Blitz"]
[Site "Chess.com"]
[Date "2021.03.16"]
[Round "3"]
[White "winniethepooh04"]
[Black "I_Enchev"]
[Result "1/2-1/2"]
[WhiteElo "2253"]
[BlackElo "2529"]
[TimeControl "180+1"]
[EndTime "10:28:35 PDT"]
[Termination "Game drawn by agreement"]

1. e4 {[%clk 0:03:00.9]} 1... c6 {[%clk 0:02:59.9]} 2. Nf3 {[%clk 0:03:00.2]}
2... d5 {[%clk 0:03:00]} 3. Nc3 {[%clk 0:03:00.4]} 3... dxe4 {[%clk 0:02:59.7]}
4. Nxe4 {[%clk 0:02:59.4]} 4... Nf6 {[%clk 0:03:00.3]} 5. Nxf6+ {[%clk
0:02:59.2]} 5... exf6 {[%clk 0:03:01.2]} 6. d4 {[%clk 0:02:59.2]} 6... Bd6
{[%clk 0:03:01.7]} 7. Bc4 {[%clk 0:02:57.7]} 7... O-O {[%clk 0:03:01]} 8. h3
{[%clk 0:02:53.2]} 8... Nd7 {[%clk 0:02:54.5]} 9. c3 {[%clk 0:02:47.5]} 9... b5
{[%clk 0:02:53.3]} 10. Bb3 {[%clk 0:02:41.3]} 10... Bb7 {[%clk 0:02:52.7]} 11.
O-O {[%clk 0:02:39]} 11... c5 {[%clk 0:02:51]} 12. Bc2 {[%clk 0:02:31.1]} 12...
c4 {[%clk 0:02:48]} 13. b3 {[%clk 0:02:29.4]} 13... Qc7 {[%clk 0:02:44.7]} 14.
bxc4 {[%clk 0:02:21]} 14... Qxc4 {[%clk 0:02:41.1]} 15. Qd3 {[%clk 0:02:12.7]}
15... Qxd3 {[%clk 0:02:38.8]} 16. Bxd3 {[%clk 0:02:12.6]} 16... a6 {[%clk
0:02:34.3]} 17. a4 {[%clk 0:02:13]} 17... b4 {[%clk 0:02:25.9]} 18. cxb4 {[%clk
0:02:07]} 18... Bxb4 {[%clk 0:02:26.8]} 19. Rb1 {[%clk 0:02:02.3]} 19... a5
{[%clk 0:02:25]} 20. Bd2 {[%clk 0:01:45.5]} 20... Bxf3 {[%clk 0:02:13.4]} 21.
Bxb4 {[%clk 0:01:45.1]} 21... axb4 {[%clk 0:02:14]} 22. gxf3 {[%clk 0:01:44.5]}
22... Rxa4 {[%clk 0:02:11.9]} 23. Bb5 {[%clk 0:01:44.5]} 23... Ra7 {[%clk
0:02:11.7]} 24. Bxd7 {[%clk 0:01:43.8]} 24... Rxd7 {[%clk 0:02:12.6]} 25. Rxb4
{[%clk 0:01:44]} 25... Rfd8 {[%clk 0:02:11]} 26. Rd1 {[%clk 0:01:41.7]} 26... f5
{[%clk 0:02:10.3]} 27. f4 {[%clk 0:01:39.5]} 27... f6 {[%clk 0:02:09.7]} 28. Kg2
{[%clk 0:01:39.8]} 28... Kf7 {[%clk 0:02:09.4]} 29. Kf3 {[%clk 0:01:39.8]} 29...
g5 {[%clk 0:02:05.4]} 30. fxg5 {[%clk 0:01:14.3]} 30... fxg5 {[%clk 0:02:06.3]}
31. Rb5 {[%clk 0:01:00.9]} 31... Kf6 {[%clk 0:02:05.1]} 32. d5 {[%clk
0:00:55.4]} 32... Rd6 {[%clk 0:02:02.1]} 33. Rb7 {[%clk 0:00:41.9]} 33... h5
{[%clk 0:01:58.7]} 34. Rb5 {[%clk 0:00:31.7]} 34... Rc8 {[%clk 0:01:54.4]} 35.
Kg3 {[%clk 0:00:21.3]} 35... Rc3+ {[%clk 0:01:52.4]} 36. f3 {[%clk 0:00:18.2]}
36... g4 {[%clk 0:01:44.3]} 37. hxg4 {[%clk 0:00:17.1]} 37... hxg4 {[%clk
0:01:42.9]} 38. Rf1 {[%clk 0:00:13.7]} 38... Kg5 {[%clk 0:01:42.4]} 39. Kg2
{[%clk 0:00:10.1]} 39... Rc2+ {[%clk 0:01:38.7]} 40. Rf2 {[%clk 0:00:07.3]}
40... Rc4 {[%clk 0:01:11.5]} 41. fxg4 {[%clk 0:00:06.6]} 41... Kxg4 {[%clk
0:01:12.3]} 42. Rb8 {[%clk 0:00:05.6]} 42... Rxd5 {[%clk 0:01:06]} 43. Rg8+
{[%clk 0:00:06]} 43... Kh5 {[%clk 0:01:06.1]} 44. Rh8+ {[%clk 0:00:06.1]} 44...
Kg6 {[%clk 0:01:05.2]} 45. Rg8+ {[%clk 0:00:06.6]} 45... Kf7 {[%clk 0:01:05.3]}
46. Rg5 {[%clk 0:00:07]} 46... Kf6 {[%clk 0:01:04.2]} 47. Rg8 {[%clk 0:00:07.4]}
47... Rc7 {[%clk 0:00:57.5]} 48. Rf8+ {[%clk 0:00:07.3]} 48... Rf7 {[%clk
0:00:57.3]} 49. Ra8 {[%clk 0:00:07.1]} 49... Rg7+ {[%clk 0:00:54.9]} 50. Kf1
{[%clk 0:00:07.2]} 50... Rg4 {[%clk 0:00:50]} 51. Rf8+ {[%clk 0:00:06.5]} 51...
Kg6 {[%clk 0:00:49]} 52. Rg8+ {[%clk 0:00:06.6]} 52... Kh7 {[%clk 0:00:45.2]}
53. Rxg4 {[%clk 0:00:06.3]} 53... fxg4 {[%clk 0:00:46.1]} 54. Kg2 {[%clk
0:00:07.2]} 54... Kg6 {[%clk 0:00:45.6]} 55. Kg3 {[%clk 0:00:07.8]} 55... Kg5
{[%clk 0:00:46]} 56. Kg2 {[%clk 0:00:06.4]} 56... Rd3 {[%clk 0:00:45.8]} 57. Rf8
{[%clk 0:00:06.4]} 57... Rd2+ {[%clk 0:00:45.5]} 58. Kg3 {[%clk 0:00:06.1]}
58... Rd3+ {[%clk 0:00:45.7]} 59. Kg2 {[%clk 0:00:06.6]} 1/2-1/2